[Event "MČR v bleskovém šachu družstev 2019"]
[Site "Teplice, Czech Republic"]
[Date "2019.09.14"]
[Round "6.4"]
[White "Vymazal, Bronislav"]
[Black "Sodoma, Jan"]
[Result "1-0"]
[TimeControl "3 mim. + 2 s"]
[BlackTitle "IM"]
[WhiteFideId "318396"]
[WhiteElo "2309"]
[BlackElo "2193"]

1. g3 {[%clk 00:03:02]} {[%emt 00:00:02]} Nf6 {[%clk 00:03:02]} {[%emt
00:00:03]} 2. Bg2 {[%clk 00:03:03]} {[%emt 00:00:01]} d5 {[%clk 00:03:02]}
{[%emt 00:00:01]} 3. f4 {[%clk 00:03:03]} {[%emt 00:00:02]} g6 {[%clk
00:03:00]} {[%emt 00:00:03]} 4. Nf3 {[%clk 00:03:04]} {[%emt 00:00:01]} Bg7
{[%clk 00:03:00]} {[%emt 00:00:02]} 5. d3 {[%clk 00:03:05]} {[%emt 00:00:01]}
b6 {[%clk 00:03:01]} {[%emt 00:00:01]} 6. O-O {[%clk 00:03:05]} {[%emt
00:00:03]} Bb7 {[%clk 00:03:02]} 7. Ne5 {[%clk 00:02:47]} {[%emt 00:00:19]} O-O
{[%clk 00:02:54]} {[%emt 00:00:10]} 8. Nc3 {[%clk 00:02:47]} {[%emt 00:00:02]}
Nbd7 {[%clk 00:02:51]} {[%emt 00:00:05]} 9. Nxd7 {[%clk 00:02:34]} {[%emt
00:00:15]} Qxd7 {[%clk 00:02:51]} {[%emt 00:00:02]} 10. e4 {[%clk 00:02:26]}
{[%emt 00:00:10]} dxe4 {[%clk 00:02:38]} {[%emt 00:00:15]} 11. dxe4 {[%clk
00:02:27]} {[%emt 00:00:02]} Rfd8 {[%clk 00:01:49]} {[%emt 00:00:50]} 12. Qe2
{[%clk 00:02:25]} {[%emt 00:00:04]} e5 {[%clk 00:01:40]} {[%emt 00:00:12]} 13.
f5 {[%clk 00:02:08]} {[%emt 00:00:19]} a5 {[%clk 00:01:26]} {[%emt 00:00:15]}
14. Rd1 {[%clk 00:01:48]} {[%emt 00:00:22]} Qc6 {[%clk 00:01:16]} {[%emt
00:00:12]} 15. fxg6 {[%clk 00:00:50]} {[%emt 00:01:01]} Rxd1+ {[%clk 00:01:08]}
{[%emt 00:00:10]} 16. Qxd1 {[%clk 00:00:50]} {[%emt 00:00:01]} hxg6 {[%clk
00:01:08]} {[%emt 00:00:02]} 17. Bg5 {[%clk 00:00:40]} {[%emt 00:00:12]} Qc5+
{[%clk 00:00:50]} {[%emt 00:00:20]} 18. Kh1 {[%clk 00:00:34]} {[%emt 00:00:09]}
Qd4 {[%clk 00:00:46]} {[%emt 00:00:06]} 19. Qf3 {[%clk 00:00:30]} {[%emt
00:00:06]} Nh7 {[%clk 00:00:21]} {[%emt 00:00:28]} 20. Be3 {[%clk 00:00:27]}
{[%emt 00:00:05]} Qb4 {[%clk 00:00:22]} 21. Rb1 {[%clk 00:00:23]} {[%emt
00:00:07]} Rd8 {[%clk 00:00:21]} {[%emt 00:00:02]} 22. a3 {[%clk 00:00:24]}
{[%emt 00:00:02]} Qe7 {[%clk 00:00:19]} {[%emt 00:00:03]} 23. Nd5 {[%clk
00:00:23]} {[%emt 00:00:03]} Bxd5 {[%clk 00:00:16]} {[%emt 00:00:05]} 24. exd5
{[%clk 00:00:24]} {[%emt 00:00:01]} Qd6 {[%clk 00:00:12]} {[%emt 00:00:06]} 25.
c4 {[%clk 00:00:25]} {[%emt 00:00:02]} Nf6 {[%clk 00:00:13]} {[%emt 00:00:01]}
26. Rf1 {[%clk 00:00:25]} {[%emt 00:00:01]} Rd7 {[%clk 00:00:13]} {[%emt
00:00:03]} 27. Bh3 {[%clk 00:00:26]} {[%emt 00:00:01]} e4 {[%clk 00:00:08]}
{[%emt 00:00:07]} 28. Qf2 {[%clk 00:00:22]} {[%emt 00:00:06]} Re7 {[%clk
00:00:03]} {[%emt 00:00:07]} 29. Bg5 {[%clk 00:00:22]} {[%emt 00:00:01]} Re5
{[%clk 00:00:03]} {[%emt 00:00:03]} 30. Bxf6 {[%clk 00:00:22]} {[%emt
00:00:02]} Bxf6 {[%clk 00:00:00]} {[%emt 00:00:02]} 31. Qxf6 {[%emt 00:00:03]}
1-0

[Event "MČR v bleskovém šachu družstev 2019"]
[Site "Teplice, Czech Republic"]
[Date "2019.09.14"]
[Round "6.5"]
[White "Rubes, Jan"]
[Black "Liska, Jiri"]
[Result "0-1"]
[TimeControl "3 mim. + 2 s"]
[WhiteTitle "FM"]
[BlackTitle "FM"]
[WhiteFideId "338176"]
[WhiteElo "2316"]
[BlackElo "2241"]

1. c4 {[%clk 00:03:03]} {[%emt 00:00:01]} Nf6 {[%clk 00:03:02]} {[%emt
00:00:03]} 2. Nc3 {[%clk 00:03:03]} {[%emt 00:00:02]} d5 {[%clk 00:03:02]}
{[%emt 00:00:02]} 3. cxd5 {[%clk 00:03:02]} {[%emt 00:00:03]} Nxd5 {[%clk
00:03:02]} {[%emt 00:00:01]} 4. g3 {[%clk 00:03:02]} {[%emt 00:00:02]} g6
{[%clk 00:02:58]} {[%emt 00:00:06]} 5. Bg2 {[%clk 00:03:03]} Nxc3 {[%clk
00:02:51]} {[%emt 00:00:10]} 6. bxc3 {[%clk 00:03:03]} {[%emt 00:00:01]} Bg7
{[%clk 00:02:51]} {[%emt 00:00:01]} 7. Rb1 {[%clk 00:03:04]} {[%emt 00:00:01]}
c6 {[%clk 00:02:42]} {[%emt 00:00:11]} 8. h4 {[%clk 00:03:05]} Nd7 {[%clk
00:02:40]} {[%emt 00:00:06]} 9. h5 {[%clk 00:03:06]} Qa5 {[%clk 00:02:25]}
{[%emt 00:00:18]} 10. Qc2 {[%clk 00:02:51]} {[%emt 00:00:17]} Nb6 {[%clk
00:02:03]} {[%emt 00:00:24]} 11. hxg6 {[%clk 00:02:00]} {[%emt 00:00:53]} hxg6
{[%clk 00:02:03]} {[%emt 00:00:01]} 12. Rxh8+ {[%clk 00:02:01]} {[%emt
00:00:02]} Bxh8 {[%clk 00:02:04]} 13. Nf3 {[%clk 00:01:58]} {[%emt 00:00:05]}
Bf5 {[%clk 00:01:54]} {[%emt 00:00:13]} 14. e4 {[%clk 00:01:56]} {[%emt
00:00:05]} Be6 {[%clk 00:01:55]} 15. d4 {[%clk 00:01:35]} {[%emt 00:00:23]}
Qxa2 {[%clk 00:01:49]} {[%emt 00:00:08]} 16. Qxa2 {[%clk 00:01:35]} {[%emt
00:00:03]} Bxa2 {[%clk 00:01:50]} 17. Ra1 {[%clk 00:01:36]} {[%emt 00:00:01]}
Bb3 {[%clk 00:01:46]} {[%emt 00:00:06]} 18. Be3 {[%clk 00:01:30]} {[%emt
00:00:08]} a5 {[%clk 00:01:36]} {[%emt 00:00:12]} 19. Nd2 {[%clk 00:01:28]}
{[%emt 00:00:04]} a4 {[%clk 00:00:38]} {[%emt 00:01:00]} 20. Nxb3 {[%clk
00:01:27]} {[%emt 00:00:03]} axb3 {[%clk 00:00:39]} {[%emt 00:00:01]} 21. Rxa8+
{[%clk 00:01:28]} {[%emt 00:00:01]} Nxa8 {[%clk 00:00:39]} {[%emt 00:00:01]} 22.
Kd2 {[%clk 00:01:29]} Nb6 {[%clk 00:00:35]} {[%emt 00:00:07]} 23. Bf1 {[%clk
00:01:30]} Kd7 {[%clk 00:00:24]} {[%emt 00:00:12]} 24. f4 {[%clk 00:01:18]}
{[%emt 00:00:15]} e6 {[%clk 00:00:21]} {[%emt 00:00:05]} 25. e5 {[%clk
00:01:13]} {[%emt 00:00:07]} Bg7 {[%clk 00:00:20]} {[%emt 00:00:02]} 26. c4
{[%clk 00:01:07]} {[%emt 00:00:09]} Na4 {[%clk 00:00:20]} {[%emt 00:00:03]} 27.
Be2 {[%clk 00:01:03]} {[%emt 00:00:06]} Bf8 {[%clk 00:00:20]} {[%emt 00:00:02]}
28. Bd1 {[%clk 00:00:56]} {[%emt 00:00:08]} Bb4+ {[%clk 00:00:20]} {[%emt
00:00:02]} 29. Kd3 {[%clk 00:00:34]} {[%emt 00:00:25]} b2 {[%clk 00:00:16]}
{[%emt 00:00:05]} 30. Bc2 {[%clk 00:00:34]} {[%emt 00:00:02]} Nc3 {[%clk
00:00:17]} {[%emt 00:00:01]} 31. Bd2 {[%clk 00:00:35]} {[%emt 00:00:02]} Na2
{[%clk 00:00:13]} {[%emt 00:00:06]} 32. Bb1 {[%clk 00:00:29]} {[%emt 00:00:08]}
Nc1+ {[%clk 00:00:13]} {[%emt 00:00:01]} 33. Kc2 {[%clk 00:00:26]} {[%emt
00:00:05]} Bxd2 {[%clk 00:00:14]} {[%emt 00:00:01]} 34. Kxd2 {[%clk 00:00:27]}
{[%emt 00:00:01]} b5 {[%clk 00:00:10]} {[%emt 00:00:06]} 35. cxb5 {[%clk
00:00:26]} {[%emt 00:00:03]} cxb5 {[%clk 00:00:11]} 36. Kc3 {[%clk 00:00:14]}
{[%emt 00:00:13]} Ne2+ {[%clk 00:00:11]} {[%emt 00:00:02]} 37. Kxb2 {[%clk
00:00:15]} {[%emt 00:00:01]} Nxg3 {[%clk 00:00:12]} 38. Kc3 {[%clk 00:00:14]}
{[%emt 00:00:04]} Kc6 {[%clk 00:00:14]} 39. Bd3 {[%clk 00:00:12]} {[%emt
00:00:04]} Nh5 {[%clk 00:00:13]} {[%emt 00:00:02]} 40. Be4+ {[%clk 00:00:14]}
{[%emt 00:00:01]} Kb6 {[%clk 00:00:15]} {[%emt 00:00:01]} 41. d5 {[%clk
00:00:14]} {[%emt 00:00:02]} Nxf4 {[%clk 00:00:14]} {[%emt 00:00:02]} 42. d6
{[%clk 00:00:14]} {[%emt 00:00:02]} Nd5+ {[%clk 00:00:14]} {[%emt 00:00:02]} 43.
Kd4 {[%clk 00:00:07]} {[%emt 00:00:10]} Kc6 {[%clk 00:00:14]} {[%emt 00:00:02]}
44. Bf3 {[%clk 00:00:05]} {[%emt 00:00:03]} g5 {[%clk 00:00:14]} {[%emt
00:00:02]} 45. Be2 {[%clk 00:00:06]} {[%emt 00:00:01]} b4 {[%clk 00:00:14]}
{[%emt 00:00:02]} 46. Bb5+ {[%clk 00:00:06]} {[%emt 00:00:02]} Kb7 {[%clk
00:00:13]} {[%emt 00:00:03]} 47. Bc4 {[%clk 00:00:07]} {[%emt 00:00:01]} Nb6
{[%clk 00:00:13]} {[%emt 00:00:02]} 48. Be2 {[%clk 00:00:08]} {[%emt 00:00:01]}
Kc6 {[%clk 00:00:14]} {[%emt 00:00:01]} 49. Bf3+ {[%clk 00:00:07]} {[%emt
00:00:02]} Kd7 {[%clk 00:00:14]} {[%emt 00:00:02]} 50. Kc5 {[%clk 00:00:08]}
{[%emt 00:00:01]} Nd5 {[%clk 00:00:10]} {[%emt 00:00:07]} 51. Be2 {[%clk
00:00:05]} {[%emt 00:00:05]} b3 {[%clk 00:00:11]} 52. Bb5+ {[%clk 00:00:06]}
{[%emt 00:00:01]} Kd8 {[%clk 00:00:12]} 53. Bd3 {[%clk 00:00:07]} g4 {[%clk
00:00:12]} {[%emt 00:00:02]} 54. Kc4 {[%clk 00:00:05]} {[%emt 00:00:04]} b2
{[%clk 00:00:12]} {[%emt 00:00:03]} 55. Kb3 {[%clk 00:00:07]} Nf4 {[%clk
00:00:10]} {[%emt 00:00:04]} 56. Be4 {[%clk 00:00:07]} {[%emt 00:00:02]} g3
{[%clk 00:00:11]} {[%emt 00:00:01]} 57. Kxb2 {[%clk 00:00:07]} {[%emt
00:00:01]} g2 {[%clk 00:00:12]} 58. Bxg2 {[%clk 00:00:08]} {[%emt 00:00:01]}
Nxg2 {[%clk 00:00:14]} 59. Kc3 {[%clk 00:00:10]} Nh4 {[%clk 00:00:14]} {[%emt
00:00:02]} 60. Kd4 {[%clk 00:00:11]} {[%emt 00:00:01]} Kd7 {[%clk 00:00:15]} 61.
Ke4 {[%clk 00:00:12]} Ng6 {[%clk 00:00:15]} {[%emt 00:00:01]} 62. Kd4 {[%clk
00:00:13]} {[%emt 00:00:01]} Kc6 {[%clk 00:00:16]} {[%emt 00:00:02]} 63. Ke4
{[%clk 00:00:13]} {[%emt 00:00:01]} Nf8 {[%clk 00:00:12]} {[%emt 00:00:06]} 64.
Kf4 {[%clk 00:00:14]} {[%emt 00:00:01]} Kd5 {[%clk 00:00:12]} {[%emt 00:00:02]}
0-1

[Event "MČR v bleskovém šachu družstev 2019"]
[Site "Teplice, Czech Republic"]
[Date "2019.09.14"]
[Round "6.6"]
[White "Vltavsky, Vladimir"]
[Black "Hadraba, Vladimir"]
[Result "1/2-1/2"]
[TimeControl "3 mim. + 2 s"]
[BlackFideId "301663"]
[WhiteElo "2252"]
[BlackElo "2095"]

1. e4 {[%clk 00:03:02]} {[%emt 00:00:01]} c5 {[%clk 00:03:03]} {[%emt
00:00:01]} 2. Nf3 {[%clk 00:03:04]} e6 {[%clk 00:03:05]} 3. c3 {[%clk
00:03:05]} d5 {[%clk 00:03:05]} {[%emt 00:00:02]} 4. exd5 {[%clk 00:03:06]}
{[%emt 00:00:01]} exd5 {[%clk 00:03:06]} {[%emt 00:00:01]} 5. d4 {[%clk
00:03:07]} Nc6 {[%clk 00:03:07]} {[%emt 00:00:01]} 6. Bb5 {[%clk 00:03:05]}
{[%emt 00:00:04]} Bd6 {[%clk 00:03:08]} 7. O-O {[%clk 00:03:05]} {[%emt
00:00:02]} Nge7 {[%clk 00:03:09]} 8. dxc5 {[%clk 00:03:06]} {[%emt 00:00:02]}
Bxc5 {[%clk 00:03:10]} {[%emt 00:00:01]} 9. Nbd2 {[%clk 00:03:07]} O-O {[%clk
00:03:09]} {[%emt 00:00:04]} 10. Nb3 {[%clk 00:03:08]} Bb6 {[%clk 00:03:05]}
{[%emt 00:00:07]} 11. Nfd4 {[%clk 00:03:09]} {[%emt 00:00:01]} a6 {[%clk
00:03:00]} {[%emt 00:00:07]} 12. Bd3 {[%clk 00:03:11]} {[%emt 00:00:01]} Nxd4
{[%clk 00:02:52]} {[%emt 00:00:10]} 13. Nxd4 {[%clk 00:03:11]} {[%emt
00:00:01]} Bxd4 {[%clk 00:02:51]} {[%emt 00:00:03]} 14. cxd4 {[%clk 00:03:12]}
{[%emt 00:00:01]} Bf5 {[%clk 00:02:52]} {[%emt 00:00:01]} 15. Bg5 {[%clk
00:03:05]} {[%emt 00:00:09]} Bxd3 {[%clk 00:02:46]} {[%emt 00:00:07]} 16. Qxd3
{[%clk 00:03:05]} {[%emt 00:00:02]} h6 {[%clk 00:02:45]} {[%emt 00:00:03]} 17.
Bh4 {[%clk 00:03:03]} {[%emt 00:00:04]} Qd7 {[%clk 00:02:44]} {[%emt 00:00:03]}
18. Bxe7 {[%clk 00:02:56]} {[%emt 00:00:08]} 1/2-1/2

[Event "MČR v bleskovém šachu družstev 2019"]
[Site "Teplice, Czech Republic"]
[Date "2019.09.14"]
[Round "6.7"]
[White "Kral, David"]
[Black "Marsalek, Zdenek"]
[Result "0-1"]
[TimeControl "3 mim. + 2 s"]
[WhiteFideId "326097"]
[WhiteElo "2028"]
[BlackElo "2272"]

1. d4 {[%clk 00:03:02]} {[%emt 00:00:01]} d5 {[%emt 00:00:01]} 2. c4 c6 3. Nc3
Nf6 {[%clk 00:03:05]} 4. Bg5 {[%clk 00:03:06]} dxc4 {[%clk 00:03:05]} {[%emt
00:00:02]} 5. a4 {[%clk 00:03:08]} {[%emt 00:00:01]} Qa5 {[%clk 00:02:59]}
{[%emt 00:00:08]} 6. Bxf6 {[%clk 00:03:01]} {[%emt 00:00:09]} exf6 {[%clk
00:02:59]} {[%emt 00:00:02]} 7. e4 {[%clk 00:03:02]} {[%emt 00:00:01]} Bb4
{[%clk 00:02:58]} {[%emt 00:00:02]} 8. Qc2 {[%clk 00:02:53]} {[%emt 00:00:11]}
Be6 {[%clk 00:02:57]} {[%emt 00:00:03]} 9. Nf3 {[%clk 00:02:45]} {[%emt
00:00:10]} O-O {[%clk 00:02:55]} {[%emt 00:00:04]} 10. Be2 {[%clk 00:02:45]}
{[%emt 00:00:02]} Nd7 {[%clk 00:02:54]} {[%emt 00:00:03]} 11. O-O {[%clk
00:02:44]} {[%emt 00:00:03]} Nb6 {[%clk 00:02:53]} {[%emt 00:00:02]} 12. Rfd1
{[%clk 00:02:25]} {[%emt 00:00:21]} Rad8 {[%clk 00:02:54]} {[%emt 00:00:01]} 13.
h3 {[%clk 00:02:07]} {[%emt 00:00:20]} Rfe8 {[%clk 00:02:53]} {[%emt 00:00:03]}
14. g4 {[%clk 00:01:56]} {[%emt 00:00:13]} Re7 {[%clk 00:02:45]} {[%emt
00:00:10]} 15. Nh4 {[%clk 00:01:34]} {[%emt 00:00:24]} g6 {[%clk 00:02:39]}
{[%emt 00:00:08]} 16. f4 {[%clk 00:01:31]} {[%emt 00:00:05]} Bc8 {[%clk
00:02:36]} {[%emt 00:00:06]} 17. Bf3 {[%clk 00:01:24]} {[%emt 00:00:08]} Rde8
{[%clk 00:02:27]} {[%emt 00:00:11]} 18. f5 {[%clk 00:01:13]} {[%emt 00:00:14]}
g5 {[%clk 00:02:16]} {[%emt 00:00:12]} 19. Ng2 {[%clk 00:01:14]} Nd7 {[%clk
00:02:13]} {[%emt 00:00:05]} 20. Ne3 {[%clk 00:01:12]} {[%emt 00:00:04]} Nb6
{[%clk 00:02:10]} {[%emt 00:00:05]} 21. Kg2 {[%clk 00:00:59]} {[%emt 00:00:15]}
Bd6 {[%clk 00:02:10]} {[%emt 00:00:02]} 22. Rh1 {[%clk 00:00:54]} {[%emt
00:00:07]} Bf4 {[%clk 00:02:09]} {[%emt 00:00:04]} 23. Nf1 {[%clk 00:00:48]}
{[%emt 00:00:08]} Rd8 {[%clk 00:02:03]} {[%emt 00:00:08]} 24. Qf2 {[%clk
00:00:42]} {[%emt 00:00:08]} Red7 {[%clk 00:02:00]} {[%emt 00:00:06]} 25. Ne2
{[%clk 00:00:36]} {[%emt 00:00:08]} Bb8 {[%clk 00:01:54]} {[%emt 00:00:08]} 26.
h4 {[%clk 00:00:36]} {[%emt 00:00:03]} Qb4 {[%clk 00:01:52]} {[%emt 00:00:03]}
27. hxg5 {[%clk 00:00:29]} {[%emt 00:00:09]} fxg5 {[%clk 00:01:53]} {[%emt
00:00:01]} 28. f6 {[%clk 00:00:26]} {[%emt 00:00:05]} Qxb2 {[%clk 00:01:18]}
{[%emt 00:00:37]} 29. Ne3 {[%clk 00:00:28]} Rxd4 {[%clk 00:01:08]} {[%emt
00:00:12]} 30. Nxd4 {[%clk 00:00:28]} {[%emt 00:00:02]} Qxf2+ {[%clk 00:01:09]}
{[%emt 00:00:01]} 31. Kxf2 {[%clk 00:00:29]} {[%emt 00:00:01]} Rxd4 {[%clk
00:01:09]} {[%emt 00:00:02]} 32. Rh5 {[%clk 00:00:23]} {[%emt 00:00:08]} Bf4
{[%clk 00:01:08]} {[%emt 00:00:03]} 33. Rah1 {[%clk 00:00:24]} Kf8 {[%clk
00:00:59]} {[%emt 00:00:13]} 34. Rxh7 Ke8 35. Rh8+ {[%clk 00:00:22]} {[%emt
00:00:05]} Kd7 {[%clk 00:01:01]} {[%emt 00:00:01]} 36. R1h7 {[%clk 00:00:21]}
{[%emt 00:00:02]} Rd2+ {[%clk 00:00:57]} {[%emt 00:00:06]} 37. Be2 {[%clk
00:00:21]} {[%emt 00:00:03]} c3 {[%clk 00:00:57]} {[%emt 00:00:01]} 38. Rxf7+
{[%clk 00:00:21]} {[%emt 00:00:02]} Ke6 {[%clk 00:00:57]} {[%emt 00:00:02]} 39.
Rff8 {[%clk 00:00:17]} {[%emt 00:00:07]} c2 {[%clk 00:00:48]} {[%emt 00:00:11]}
40. Nxc2 {[%clk 00:00:16]} {[%emt 00:00:03]} Rxc2 {[%clk 00:00:48]} {[%emt
00:00:01]} 41. f7 {[%clk 00:00:14]} {[%emt 00:00:04]} Bd6 {[%clk 00:00:46]}
{[%emt 00:00:04]} 42. Rh6+ {[%clk 00:00:14]} {[%emt 00:00:01]} Ke7 {[%clk
00:00:46]} {[%emt 00:00:02]} 43. Rhh8 {[%clk 00:00:09]} {[%emt 00:00:07]} Bc5+
{[%clk 00:00:47]} {[%emt 00:00:01]} 44. Kf3 {[%clk 00:00:09]} {[%emt 00:00:03]}
Rc3+ {[%clk 00:00:47]} {[%emt 00:00:01]} 45. Kg2 {[%clk 00:00:10]} {[%emt
00:00:01]} Be6 {[%clk 00:00:47]} {[%emt 00:00:02]} 46. a5 {[%clk 00:00:09]}
{[%emt 00:00:03]} Nd7 {[%clk 00:00:48]} {[%emt 00:00:01]} 47. Re8+ {[%clk
00:00:09]} {[%emt 00:00:01]} Kxf7 {[%clk 00:00:48]} {[%emt 00:00:02]} 48. Ra8
{[%clk 00:00:11]} {[%emt 00:00:01]} Rc2 {[%clk 00:00:48]} {[%emt 00:00:02]} 49.
Kf3 {[%clk 00:00:12]} Rc3+ {[%clk 00:00:49]} {[%emt 00:00:02]} 50. Kg2 {[%clk
00:00:13]} a6 {[%clk 00:00:49]} {[%emt 00:00:02]} 51. Rh7+ {[%clk 00:00:14]}
Kf6 {[%clk 00:00:50]} {[%emt 00:00:01]} 52. Rxd7 {[%clk 00:00:15]} {[%emt
00:00:01]} Bxd7 {[%clk 00:00:51]} {[%emt 00:00:01]} 53. Rb8 {[%clk 00:00:16]}
{[%emt 00:00:01]} Be6 {[%clk 00:00:50]} {[%emt 00:00:03]} 54. Rxb7 {[%clk
00:00:16]} {[%emt 00:00:01]} Rc2 {[%clk 00:00:51]} {[%emt 00:00:01]} 55. Kf1
{[%clk 00:00:17]} Ke5 {[%clk 00:00:52]} {[%emt 00:00:02]} 56. Rc7 {[%clk
00:00:18]} {[%emt 00:00:01]} Kd6 {[%clk 00:00:52]} {[%emt 00:00:02]} 57. Rg7
{[%clk 00:00:18]} {[%emt 00:00:02]} Be3 {[%clk 00:00:53]} {[%emt 00:00:01]} 58.
Rg6 {[%clk 00:00:19]} {[%emt 00:00:01]} Ke5 {[%clk 00:00:54]} {[%emt 00:00:01]}
59. Rg7 {[%clk 00:00:19]} {[%emt 00:00:02]} Kxe4 {[%clk 00:00:54]} {[%emt
00:00:02]} 60. Re7 {[%clk 00:00:20]} Ke5 {[%clk 00:00:55]} {[%emt 00:00:01]} 61.
Rb7 {[%clk 00:00:20]} {[%emt 00:00:02]} Bd5 {[%clk 00:00:56]} {[%emt 00:00:01]}
62. Re7+ {[%clk 00:00:21]} {[%emt 00:00:01]} Kf4 {[%clk 00:00:57]} 63. Ke1
{[%clk 00:00:19]} {[%emt 00:00:03]} Rc1+ {[%emt 00:00:02]} 64. Bd1 {[%clk
00:00:19]} {[%emt 00:00:01]} Bb3 {[%clk 00:00:59]} 65. Re4+ {[%clk 00:00:18]}
{[%emt 00:00:04]} Kxe4 {[%clk 00:00:55]} {[%emt 00:00:06]} 0-1

[Event "MČR v bleskovém šachu družstev 2019"]
[Site "Teplice, Czech Republic"]
[Date "2019.09.14"]
[Round "6.8"]
[White "Duran, Tomas"]
[Black "Krutsky, Martin"]
[Result "1-0"]
[TimeControl "3 mim. + 2 s"]
[BlackFideId "361526"]
[WhiteElo "2135"]
[BlackElo "1974"]

1. e4 {[%clk 00:03:02]} {[%emt 00:00:02]} c5 {[%clk 00:03:04]} 2. Nf3 {[%clk
00:03:02]} {[%emt 00:00:03]} d6 {[%clk 00:03:05]} 3. c3 {[%clk 00:03:00]}
{[%emt 00:00:05]} Nf6 {[%clk 00:03:03]} {[%emt 00:00:03]} 4. Be2 {[%clk
00:03:00]} {[%emt 00:00:02]} e6 {[%clk 00:02:56]} {[%emt 00:00:10]} 5. O-O
{[%clk 00:02:59]} {[%emt 00:00:03]} Be7 {[%clk 00:02:56]} {[%emt 00:00:01]} 6.
d3 {[%clk 00:02:54]} {[%emt 00:00:07]} O-O {[%clk 00:02:55]} {[%emt 00:00:03]}
7. h3 {[%clk 00:02:55]} {[%emt 00:00:02]} Nc6 {[%clk 00:02:48]} {[%emt
00:00:08]} 8. Be3 {[%clk 00:02:55]} {[%emt 00:00:03]} a6 {[%clk 00:02:42]}
{[%emt 00:00:08]} 9. a4 {[%clk 00:02:54]} {[%emt 00:00:02]} b6 {[%clk
00:02:42]} {[%emt 00:00:02]} 10. Nbd2 {[%clk 00:02:54]} {[%emt 00:00:02]} Bb7
{[%clk 00:02:39]} {[%emt 00:00:05]} 11. Qc2 {[%clk 00:02:52]} {[%emt 00:00:05]}
Rc8 {[%clk 00:02:34]} {[%emt 00:00:07]} 12. Rfd1 {[%clk 00:02:43]} {[%emt
00:00:11]} Qc7 {[%clk 00:02:31]} {[%emt 00:00:05]} 13. Bf4 {[%clk 00:02:35]}
{[%emt 00:00:10]} Ne5 {[%clk 00:01:57]} {[%emt 00:00:36]} 14. Nxe5 {[%clk
00:02:16]} {[%emt 00:00:22]} dxe5 {[%clk 00:01:58]} 15. Be3 {[%clk 00:02:17]}
Rfd8 {[%clk 00:01:40]} {[%emt 00:00:20]} 16. Nc4 {[%clk 00:02:02]} {[%emt
00:00:17]} Ba8 {[%clk 00:01:23]} {[%emt 00:00:19]} 17. Bf3 {[%clk 00:02:00]}
{[%emt 00:00:05]} Nd7 {[%clk 00:00:58]} {[%emt 00:00:26]} 18. g3 {[%clk
00:01:51]} {[%emt 00:00:11]} f5 {[%clk 00:00:52]} {[%emt 00:00:08]} 19. Qe2
{[%clk 00:01:44]} {[%emt 00:00:10]} f4 {[%clk 00:00:46]} {[%emt 00:00:08]} 20.
Bc1 {[%clk 00:01:37]} {[%emt 00:00:09]} fxg3 {[%clk 00:00:20]} {[%emt
00:00:28]} 21. fxg3 {[%clk 00:01:38]} {[%emt 00:00:01]} Rf8 {[%clk 00:00:21]}
{[%emt 00:00:01]} 22. Bg4 {[%clk 00:01:37]} {[%emt 00:00:03]} Kh8 {[%clk
00:00:09]} {[%emt 00:00:14]} 23. Bxe6 {[%clk 00:01:32]} {[%emt 00:00:06]} Rf6
{[%clk 00:00:10]} {[%emt 00:00:02]} 24. Bg4 {[%clk 00:01:33]} {[%emt 00:00:01]}
Rcf8 {[%clk 00:00:10]} {[%emt 00:00:02]} 25. Be3 {[%clk 00:01:33]} {[%emt
00:00:01]} h6 {[%clk 00:00:09]} {[%emt 00:00:04]} 26. Rf1 {[%clk 00:01:34]}
{[%emt 00:00:02]} Qc6 {[%clk 00:00:08]} {[%emt 00:00:02]} 27. Rxf6 {[%clk
00:01:32]} {[%emt 00:00:04]} Qxf6 {[%clk 00:00:09]} {[%emt 00:00:01]} 28. Rf1
{[%clk 00:01:33]} Qxf1+ 29. Qxf1 {[%clk 00:01:34]} Rxf1+ {[%clk 00:00:10]} 30.
Kxf1 {[%clk 00:01:35]} {[%emt 00:00:01]} b5 {[%clk 00:00:10]} {[%emt 00:00:02]}
31. Bxd7 {[%clk 00:01:27]} {[%emt 00:00:10]} bxc4 {[%clk 00:00:11]} {[%emt
00:00:01]} 32. dxc4 {[%clk 00:01:28]} {[%emt 00:00:01]} Bxe4 {[%clk 00:00:12]}
{[%emt 00:00:01]} 33. Ke2 {[%clk 00:01:22]} {[%emt 00:00:08]} Bc2 {[%clk
00:00:12]} {[%emt 00:00:02]} 34. a5 {[%clk 00:01:21]} {[%emt 00:00:03]} Bb3
{[%clk 00:00:10]} {[%emt 00:00:04]} 35. Kd3 {[%clk 00:01:22]} {[%emt 00:00:01]}
Bd8 {[%clk 00:00:06]} {[%emt 00:00:06]} 36. Bxc5 {[%clk 00:01:21]} {[%emt
00:00:03]} Bxa5 {[%clk 00:00:06]} 37. Bc8 {[%clk 00:01:22]} {[%emt 00:00:02]}
Bc7 {[%clk 00:00:06]} {[%emt 00:00:02]} 38. Bxa6 {[%clk 00:01:21]} {[%emt
00:00:03]} e4+ {[%clk 00:00:06]} {[%emt 00:00:02]} 39. Kxe4 {[%clk 00:01:22]}
{[%emt 00:00:01]} Bxc4 {[%clk 00:00:07]} 40. Bxc4 {[%clk 00:01:23]} {[%emt
00:00:02]} 1-0